fUSD/lending_fUSD_20260508
["ID","MTS","AMOUNT","RATE_DAILY","PERIOD"]
[421813783,1778182232000,-177.31547693,0.000378,7]
[421813824,1778182232000,-344.69064679,0.00038011,2]
[421813844,1778182232000,-1581.0,0.0003884,11]
[421813848,1778182232000,-1581.0,0.00039085,11]
[421813847,1778182232000,-2263.3053,0.00038991,2]
[421813850,1778182232000,-150.0,0.000392,7]
[421813851,1778182232000,-163.0,0.0003922,11]
[421813849,1778182232000,-150.0,0.000392,7]
[421813854,1778182232000,-1581.0,0.00039273,11]
[421813857,1778182232000,-711.123,0.0003931,2]
[421813858,1778182232000,-964.09,0.00039326,10]
[421813859,1778182232000,-505.0,0.00039336,15]
[421813860,1778182232000,-1581.0,0.00039365,11]
[421813861,1778182232000,-1581.0,0.00039419,11]
[421813864,1778182232000,-691.7234,0.00039506,2]
[421813866,1778182232000,-1051.54508863,0.00039606,2]
[421813862,1778182232000,-613.74,0.00039458,2]
[421813863,1778182232000,-1581.0,0.00039459,11]
[421813867,1778182232000,-911.72705474,0.00039606,2]
[421813868,1778182232000,-3213.21263462,0.00039606,2]
[421813828,1778182232000,-300.77619994,0.00038011,2]
[421813845,1778182232000,-669.51,0.0003889,10]
[421813853,1778182232000,-1581.0,0.0003924,11]
[421813865,1778182232000,-35514.85818519,0.00039606,2]
[421813846,1778182232000,-1581.0,0.000389,11]
[421813855,1778182232000,-803.41,0.000393,10]
[421813830,1778182232000,-300.0,0.00038011,2]
[421813823,1778182232000,-1792.1834196,0.00038011,2]
[421813831,1778182232000,-300.0,0.00038011,2]
[421813820,1778182232000,-302.99203412,0.00038011,2]
[421813829,1778182232000,-300.0,0.00038011,2]
[421813834,1778182232000,-300.0,0.00038011,2]
[421813835,1778182232000,-301.08115584,0.00038011,2]
[421813837,1778182232000,-1581.0,0.0003828,11]
[421813839,1778182232000,-158.4314,0.00038351,2]
[421813825,1778182232000,-300.0,0.00038011,2]
[421813833,1778182232000,-300.0,0.00038011,2]
[421813842,1778182232000,-844.8,0.00038393,2]
[421813840,1778182232000,-711.123,0.00038351,2]
[421813843,1778182232000,-2263.3053,0.00038671,2]
[421813838,1778182232000,-2263.3053,0.00038351,2]
[421813836,1778182232000,-1581.0,0.0003826,11]
[421813841,1778182232000,-257.5171414,0.00038356,2]
[421813856,1778182232000,-2263.3053,0.0003931,2]
[421813832,1778182232000,-300.72214661,0.00038011,2]
[421813852,1778182232000,-1581.0,0.0003924,11]
[421813903,1778182240000,-230.08675194,0.0003973,7]
[421813906,1778182240000,-223.91227185,0.00039849,15]
[421813898,1778182240000,-153.0,0.0003973,7]
[421813897,1778182240000,-153.0,0.0003973,7]
[421813900,1778182240000,-153.0,0.0003973,7]
[421813902,1778182240000,-154.0,0.0003973,7]
[421813908,1778182240000,-1581.0,0.00039899,11]
[421813904,1778182240000,-1581.0,0.00039762,11]
[421813901,1778182240000,-235.0,0.0003973,7]
[421813907,1778182240000,-310.0,0.00039863,66]
[421813918,1778182240000,-540.0,0.0004005,30]
[421813909,1778182240000,-10400.0,0.000399,14]
[421813905,1778182240000,-5200.0,0.000398,14]
[421813899,1778182240000,-153.0,0.0003973,7]
[421813889,1778182240000,-2263.3053,0.0003963,2]
[421813892,1778182240000,-2000.0,0.000397,116]
[421813891,1778182240000,-2000.0,0.000397,116]
[421813890,1778182240000,-2000.0,0.000397,116]
[421813885,1778182240000,-1951.3737945,0.00039606,2]
[421813893,1778182240000,-2000.0,0.000397,116]
[421813887,1778182240000,-500.0,0.00039606,30]
[421813886,1778182240000,-1549.678704,0.00039606,2]
[421813888,1778182240000,-861.0,0.00039606,30]
[421813883,1778182240000,-2466.87213185,0.00039606,2]
[421813894,1778182240000,-2000.0,0.000397,116]
[421813884,1778182240000,-2847.6634004,0.00039606,2]
[421813882,1778182240000,-697.63615187,0.00039606,2]
[421813920,1778182240000,-270.88469513,0.00040053,31]
[421813895,1778182240000,-241.36707265,0.00039721,2]
[421813919,1778182240000,-362.91475001,0.00040053,31]
[421813896,1778182240000,-1534.0,0.0003973,7]
[421813911,1778182240000,-2500.0,0.00039954,2]
[421813910,1778182240000,-2263.3053,0.00039949,2]
[421813945,1778182240000,-400.0,0.00040054,120]
[421813940,1778182240000,-500.0,0.00040053,2]
[421813939,1778182240000,-351.15086072,0.00040053,7]
[421813941,1778182240000,-500.0,0.00040053,2]
[421813943,1778182240000,-775.43514157,0.00040054,49]
[421813938,1778182240000,-500.0,0.00040053,7]
[421813947,1778182240000,-5370.1074,0.00040054,2]
[421813949,1778182240000,-960015.92693972,0.00040054,2]
[421813936,1778182240000,-500.0,0.00040053,7]
[421813929,1778182240000,-615.36849863,0.00040053,31]
[421813930,1778182240000,-500.0,0.00040053,31]
[421813931,1778182240000,-500.0,0.00040053,31]
[421813928,1778182240000,-500.0,0.00040053,31]
[421813937,1778182240000,-500.0,0.00040053,7]
[421813932,1778182240000,-500.0,0.00040053,31]
[421813917,1778182240000,-557.93,0.00040044,10]
[421813914,1778182240000,-1581.0,0.00040005,11]
[421813934,1778182240000,-500.0,0.00040053,31]
[421813913,1778182240000,-157.84620669,0.00039954,2]
[421813915,1778182240000,-1581.0,0.00040033,11]
[421813916,1778182240000,-219.19335425,0.00040044,7]
[421813921,1778182240000,-243.03077282,0.00040053,31]
[421813912,1778182240000,-459.63264432,0.00039954,15]
[421813925,1778182240000,-500.0,0.00040053,31]
[421813923,1778182240000,-500.0,0.00040053,31]
[421813922,1778182240000,-500.0,0.00040053,31]
[421813926,1778182240000,-500.0,0.00040053,31]
[421813927,1778182240000,-500.0,0.00040053,31]
[421813924,1778182240000,-500.0,0.00040053,31]
[421814245,1778182243000,-402.45793,0.00027137,2]
[421814550,1778182245000,-151.0,0.00040054,30]
[421814548,1778182245000,-151.0,0.00040054,30]
[421814540,1778182245000,-151.0,0.00040054,30]
[421814552,1778182245000,-151.0,0.00040054,30]
[421814535,1778182245000,-102.54207,0.00027137,2]
[421814538,1778182245000,-255590.24497684,0.00040054,2]
[421814536,1778182245000,-444.89793,0.00040054,2]
[421814549,1778182245000,-151.0,0.00040054,30]
[421814537,1778182245000,-122692.00085344,0.00040054,2]
[421814551,1778182245000,-151.0,0.00040054,30]
[421814546,1778182245000,-151.0,0.00040054,30]
[421814544,1778182245000,-151.0,0.00040054,30]
[421814553,1778182245000,-151.0,0.00040054,30]
[421814555,1778182245000,-151.0,0.00040054,30]
[421814556,1778182245000,-151.0,0.00040054,30]
[421814554,1778182245000,-299.378726,0.00040054,30]
[421814559,1778182245000,-223.91227181,0.00040077,15]
[421814558,1778182245000,-151.0,0.00040054,30]
[421814560,1778182245000,-151.0,0.00040096,30]
[421814542,1778182245000,-151.0,0.00040054,30]
[421814557,1778182245000,-466.0,0.00040054,60]
[421814597,1778182246000,-500.0,0.00040096,14]
[421814599,1778182246000,-194.72792766,0.00040096,14]
[421814598,1778182246000,-233.51889341,0.00040096,14]
[421814600,1778182246000,-500.0,0.00040096,14]
[421814593,1778182246000,-500.0,0.00040096,14]
[421814594,1778182246000,-181.08010149,0.00040096,14]
[421814592,1778182246000,-225.18697532,0.00040096,14]
[421814596,1778182246000,-187.78006525,0.00040096,14]
[421814616,1778182246000,-546.0,0.000401,30]
[421814591,1778182246000,-174.61919141,0.00040096,14]
[421814595,1778182246000,-500.0,0.00040096,14]
[421814603,1778182246000,-500.0,0.00040096,14]
[421814610,1778182246000,-151.0,0.00040096,30]
[421814602,1778182246000,-201.93286099,0.00040096,14]
[421814605,1778182246000,-320.69786781,0.00040096,14]
[421814607,1778182246000,-260.4103811,0.00040096,14]
[421814606,1778182246000,-500.0,0.00040096,14]
[421814608,1778182246000,-270.0455652,0.00040096,14]
[421814604,1778182246000,-251.11897888,0.00040096,14]
[421814611,1778182246000,-151.0,0.00040096,30]
[421814609,1778182246000,-170.90880928,0.00040096,14]
[421814612,1778182246000,-151.0,0.00040096,30]
[421814625,1778182246000,-208.510448,0.00040154,30]
[421814615,1778182246000,-3495.36739748,0.000401,120]
[421814590,1778182246000,-500.0,0.00040096,14]
[421814613,1778182246000,-322.0,0.00040099,11]
[421814601,1778182246000,-242.15909246,0.00040096,14]
[421814561,1778182246000,-151.0,0.00040096,30]
[421814584,1778182246000,-500.0,0.00040096,14]
[421814564,1778182246000,-599.60298507,0.00040096,14]
[421814563,1778182246000,-200.0,0.00040096,14]
[421814562,1778182246000,-578.20924308,0.00040096,14]
[421814566,1778182246000,-621.78829552,0.00040096,14]
[421814577,1778182246000,-349.82327691,0.00040096,14]
[421814576,1778182246000,-151.0,0.00040096,14]
[421814565,1778182246000,-200.0,0.00040096,14]
[421814567,1778182246000,-695.36872574,0.00040096,14]
[421814575,1778182246000,-9905.5980765,0.00040096,14]
[421814569,1778182246000,-200.0,0.00040096,14]
[421814570,1778182246000,-200.0,0.00040096,14]
[421814568,1778182246000,-200.0,0.00040096,14]
[421814583,1778182246000,-158.09655178,0.00040096,14]
[421814571,1778182246000,-151.0,0.00040096,14]
[421814572,1778182246000,-9552.16786547,0.00040096,14]
[421814574,1778182246000,-200.0,0.00040096,14]
[421814578,1778182246000,-3906.92992093,0.00040096,14]
[421814579,1778182246000,-500.0,0.00040096,14]
[421814589,1778182246000,-151.0,0.00040096,30]
[421814580,1778182246000,-151.0,0.00040096,14]
[421814582,1778182246000,-151.0,0.00040096,14]
[421814587,1778182246000,-500.0,0.00040096,14]
[421814588,1778182246000,-217.15233878,0.00040096,14]
[421814585,1778182246000,-500.0,0.00040096,14]
[421814581,1778182246000,-151.0,0.00040096,14]
[421814586,1778182246000,-209.40437684,0.00040096,14]
[421814573,1778182246000,-151.0,0.00040096,14]
[421814618,1778182246000,-200.0,0.000401,7]
[421814653,1778182246000,-459.63264423,0.00040603,15]
[421814621,1778182246000,-1185.0,0.00040128,11]
[421814659,1778182246000,-1581.0,0.00040625,11]
[421814663,1778182246000,-1444.0,0.00040658,120]
[421814673,1778182246000,-1232.88,0.00040861,120]
[421814676,1778182246000,-160.0,0.000409,76]
[421814669,1778182246000,-459.63264423,0.00040819,15]
[421814667,1778182246000,-223.91227181,0.00040761,15]
[421814665,1778182246000,-157.84620666,0.00040684,28]
[421814682,1778182246000,-500.0,0.00040949,7]
[421814671,1778182246000,-207.9261601,0.0004085,120]
[421814680,1778182246000,-1093.42636637,0.00040949,30]
[421814678,1778182246000,-15600.0,0.000409,14]
[421814684,1778182246000,-164573.85905901,0.0004095,60]
[421814661,1778182246000,-1581.0,0.00040625,11]
[421814696,1778182246000,-151.0,0.0004095,30]
[421814699,1778182246000,-151.0,0.0004095,30]
[421814690,1778182246000,-81733.37809713,0.0004095,60]
[421814693,1778182246000,-9033.76284386,0.0004095,60]
[421814701,1778182246000,-151.0,0.0004095,30]
[421814703,1778182246000,-223.91227181,0.00040988,15]
[421814709,1778182246000,-2305.00512051,0.00040999,2]
[421814707,1778182246000,-400.0,0.00040997,2]
[421814705,1778182246000,-400.0,0.00040997,2]
[421814713,1778182246000,-1872.97211968,0.00041,7]
[421814711,1778182246000,-362.42,0.00041,120]
[421814715,1778182246000,-459.63264423,0.00041035,15]
[421814622,1778182246000,-151.0,0.00040151,14]
[421814697,1778182246000,-151.0,0.0004095,30]
[421814657,1778182246000,-800.0,0.00040623,21]
[421814655,1778182246000,-500.0,0.00040623,21]
[421814646,1778182246000,-223.91227181,0.00040533,15]
[421814619,1778182246000,-1798.80895522,0.00040107,30]
[421814614,1778182246000,-2000.0,0.00040099,120]
[421814620,1778182246000,-535.0,0.00040123,30]
[421814617,1778182246000,-541.0,0.000401,30]
[421814624,1778182246000,-151.0,0.00040154,30]
[421814623,1778182246000,-39254.74889405,0.00040154,2]
[421814626,1778182246000,-151.0,0.00040154,30]
[421814629,1778182246000,-285.970374,0.00040154,30]
[421814630,1778182246000,-1581.0,0.00040159,11]
[421814627,1778182246000,-151.0,0.00040154,30]
[421814631,1778182246000,-459.63264423,0.0004017,15]
[421814637,1778182246000,-223.91227181,0.00040305,15]
[421814633,1778182246000,-1581.0,0.00040258,11]
[421814628,1778182246000,-151.0,0.00040154,30]
[421814636,1778182246000,-711.1232,0.00040269,2]
[421814634,1778182246000,-1581.0,0.00040258,11]
[421814643,1778182246000,-459.63264423,0.00040386,15]
[421814648,1778182246000,-1581.0,0.00040543,11]
[421814640,1778182246000,-996.0,0.00040333,5]
[421814651,1778182246000,-150.0,0.000406,7]
[421814641,1778182246000,-163.0,0.00040353,11]
[421814645,1778182246000,-179.18756609,0.00040526,2]
[421814639,1778182246000,-1581.0,0.00040325,11]
[421814649,1778182246000,-150.0,0.000406,7]
[421814635,1778182246000,-2263.3058,0.00040269,2]
[421814632,1778182246000,-416.94,0.00040238,10]
[421814638,1778182246000,-157.84620666,0.00040319,28]
[421814742,1778182247000,-1478.148981,0.00041096,120]
[421814740,1778182247000,-1478.148981,0.00041096,120]
[421814744,1778182247000,-1478.148981,0.00041096,120]
[421814730,1778182247000,-1478.148981,0.00041096,120]
[421814734,1778182247000,-1478.148981,0.00041096,120]
[421814732,1778182247000,-1478.148981,0.00041096,120]
[421814721,1778182247000,-500.0,0.00041095,2]
[421814723,1778182247000,-300.0,0.00041095,2]
[421814725,1778182247000,-300.0,0.00041095,2]
[421814717,1778182247000,-157.84620666,0.0004105,28]
[421814719,1778182247000,-739.0,0.00041055,5]
[421814727,1778182247000,-300.0,0.00041095,2]
[421814738,1778182247000,-1478.148981,0.00041096,120]
[421814766,1778182247000,-1478.148981,0.00041096,120]
[421814746,1778182247000,-1478.148981,0.00041096,120]
[421814762,1778182247000,-1478.148981,0.00041096,120]
[421814760,1778182247000,-3121.860912,0.00041096,120]
[421814736,1778182247000,-1478.148981,0.00041096,120]
[421814756,1778182247000,-3121.860912,0.00041096,120]
[421814770,1778182247000,-1107.17166669,0.00041096,120]
[421814758,1778182247000,-1478.148981,0.00041096,120]
[421814764,1778182247000,-3121.860912,0.00041096,120]
[421814754,1778182247000,-1478.148981,0.00041096,120]
[421814750,1778182247000,-1478.148981,0.00041096,120]
[421814752,1778182247000,-1478.148981,0.00041096,120]
[421814748,1778182247000,-1478.148981,0.00041096,120]
[421814768,1778182247000,-3121.860912,0.00041096,120]
[421814988,1778182750000,-150.0,0.00013699,2]
[421814989,1778182750000,-102.16454479,0.00015069,2]
[421814990,1778182899000,8800.0,0.00011945,2]
[421814991,1778182921000,9900.0,0.00011945,2]
[421815017,1778183431000,-397.83545521,0.00022919,2]
[421815011,1778183431000,-159.77,0.00018476,2]
[421815018,1778183431000,-871.54149594,0.00023077,2]
[421815013,1778183431000,-167.74,0.00019937,2]
[421815014,1778183431000,-159.77,0.00020016,2]
[421815015,1778183431000,-159.77,0.00021555,2]
[421815016,1778183431000,-250.0,0.00021931,2]
[421815019,1778183431000,-159.77,0.00023095,2]
[421815020,1778183431000,-159.77,0.00024635,2]
[421815012,1778183431000,-163.9057674,0.00018476,2]
[421815085,1778183432000,-1000.0,0.00035616,10]
[421815061,1778183432000,-1000.0,0.00035616,10]
[421815062,1778183432000,-1000.0,0.00035616,10]
[421815059,1778183432000,-1000.0,0.00035616,10]
[421815055,1778183432000,-505.0,0.0003527,10]
[421815053,1778183432000,-6483.92,0.0003424,2]
[421815057,1778183432000,-1000.0,0.00035616,10]
[421815060,1778183432000,-1000.0,0.00035616,10]
[421815054,1778183432000,-207.9261601,0.00034741,2]
[421815052,1778183432000,-159.77,0.00033873,2]
[421815046,1778183432000,-196.24666072,0.00032,120]
[421815056,1778183432000,-159.77,0.00035413,2]
[421815058,1778183432000,-1000.0,0.00035616,10]
[421815069,1778183432000,-1000.0,0.00035616,10]
[421815066,1778183432000,-1000.0,0.00035616,10]
[421815068,1778183432000,-1000.0,0.00035616,10]
[421815065,1778183432000,-1000.0,0.00035616,10]
[421815074,1778183432000,-1000.0,0.00035616,10]
[421815078,1778183432000,-1000.0,0.00035616,10]
[421815076,1778183432000,-1000.0,0.00035616,10]
[421815072,1778183432000,-1000.0,0.00035616,10]
[421815071,1778183432000,-1000.0,0.00035616,10]
[421815070,1778183432000,-1000.0,0.00035616,10]
[421815080,1778183432000,-1000.0,0.00035616,10]
[421815081,1778183432000,-500.0,0.00035616,10]
[421815063,1778183432000,-1000.0,0.00035616,10]
[421815048,1778183432000,-404.255524,0.00032171,2]
[421815045,1778183432000,-163.0,0.00031644,14]
[421815051,1778183432000,-200.0,0.00033589,3]
[421815022,1778183432000,-163.9057674,0.000259,2]
[421815023,1778183432000,-251.33520074,0.00026075,2]
[421815021,1778183432000,-170.948075,0.000259,2]
[421815024,1778183432000,-159.77,0.00026174,2]
[421815025,1778183432000,-214.63993676,0.00026189,2]
[421815028,1778183432000,-163.9057674,0.00027113,2]
[421815027,1778183432000,-170.948075,0.000265,2]
[421815026,1778183432000,-170.948075,0.000262,2]
[421815029,1778183432000,-1200.0,0.00027136,2]
[421815031,1778183432000,-505.0,0.00027137,2]
[421815030,1778183432000,-505.0,0.00027137,2]
[421815039,1778183432000,-159.77,0.00030793,2]
[421815034,1778183432000,-159.77,0.00027714,2]
[421815033,1778183432000,-505.0,0.00027137,2]
[421815038,1778183432000,-501.32,0.00030237,7]
[421815037,1778183432000,-163.0,0.0003,14]
[421815040,1778183432000,-157.0,0.00031122,30]
[421815036,1778183432000,-1275.0,0.00029462,2]
[421815035,1778183432000,-159.77,0.00029254,2]
[421815041,1778183432000,-158.0,0.00031122,30]
[421815042,1778183432000,-555.0,0.00031203,2]
[421815050,1778183432000,-251.33520074,0.00032643,2]
[421815049,1778183432000,-159.77,0.00032333,2]
[421815043,1778183432000,-400.0,0.00031203,3]
[421815044,1778183432000,-505.0,0.00031203,6]
[421815047,1778183432000,-196.24666071,0.00032,120]
[421815092,1778183432000,-160.67198756,0.00036681,7]
[421815032,1778183432000,-505.0,0.00027137,2]
[421815084,1778183432000,-1000.0,0.00035616,10]
[421815111,1778183432000,-150.0,0.000378,7]
[421815117,1778183432000,-723.59,0.00038109,10]
[421815118,1778183432000,-924.0,0.00038119,30]
[421815120,1778183432000,-2169.7192,0.00038351,2]
[421815121,1778183432000,-150.5,0.00038351,2]
[421815124,1778183432000,-222.31624491,0.00038356,2]
[421815127,1778183432000,-2169.7192,0.00038671,2]
[421815122,1778183432000,-1465.797,0.00038356,51]
[421815126,1778183432000,-868.31,0.00038661,10]
[421815128,1778183432000,-2169.7192,0.00038991,2]
[421815119,1778183432000,-689.0,0.00038119,30]
[421815125,1778183432000,-176.99,0.00038488,2]
[421815110,1778183432000,-150.0,0.000378,7]
[421815123,1778183432000,-206.103,0.00038356,51]
[421815130,1778183432000,-705.17344254,0.00039289,2]
[421815139,1778183432000,-2169.7192,0.00039949,2]
[421815140,1778183432000,-153.53984355,0.0004,15]
[421815141,1778183432000,-1934.38338737,0.0004002,30]
[421815135,1778183432000,-505.0,0.00039336,15]
[421815137,1778183432000,-2005.9555727,0.00039639,30]
[421815131,1778183432000,-600.97,0.000393,10]
[421815083,1778183432000,-1000.0,0.00035616,10]
[421815134,1778183432000,-153.2452,0.0003931,2]
[421815133,1778183432000,-2169.7192,0.0003931,2]
[421815138,1778183432000,-167.74,0.00039875,2]
[421815132,1778183432000,-200.0,0.00039308,2]
[421815136,1778183432000,-2169.7192,0.0003963,2]
[421815113,1778183432000,-309.11524289,0.00038055,2]
[421815129,1778183432000,-251.33520074,0.0003921,2]
[421815112,1778183432000,-150.00000001,0.000378,7]
[421815109,1778183432000,-150.0,0.000378,7]
[421815082,1778183432000,-1000.0,0.00035616,10]
[421815090,1778183432000,-160.67198756,0.00036239,30]
[421815091,1778183432000,-241.00798134,0.00036674,7]
[421815088,1778183432000,-325.0,0.00036164,2]
[421815089,1778183432000,-160.67198756,0.00036214,30]
[421815087,1778183432000,-500.0,0.0003589,10]
[421815093,1778183432000,-241.00798134,0.00036701,30]
[421815094,1778183432000,-586.88,0.00036724,2]
[421815096,1778183432000,-159.77,0.00036952,2]
[421815095,1778183432000,-306.87,0.00036753,2]
[421815097,1778183432000,-218.0,0.0003703,2]
[421815104,1778183432000,-1000.0,0.00037484,2]
[421815086,1778183432000,-936.0,0.00035616,10]
[421815101,1778183432000,-178.94492219,0.000373,120]
[421815102,1778183432000,-500.0,0.00037349,2]
[421815115,1778183432000,-308.85908578,0.00038055,2]
[421815116,1778183432000,-602.99,0.00038099,10]
[421815105,1778183432000,-500.0,0.00037507,2]
[421815114,1778183432000,-300.76520126,0.00038055,2]
[421815108,1778183432000,-150.0,0.000378,7]
[421815103,1778183432000,-3138.9,0.00037408,2]
[421815100,1778183432000,-5000.0,0.00037214,2]
[421815098,1778183432000,-150.0,0.0003703,2]
[421815099,1778183432000,-3626.0,0.0003703,2]
[421815106,1778183432000,-150.0,0.000378,30]
[421815107,1778183432000,-150.0,0.000378,7]
[421815163,1778183433000,-1045.5177142,0.00040096,31]
[421815175,1778183433000,-1045.5177142,0.00040096,31]
[421815169,1778183433000,-1045.5177142,0.00040096,31]
[421815171,1778183433000,-1045.5177142,0.00040096,31]
[421815170,1778183433000,-1045.5177142,0.00040096,31]
[421815172,1778183433000,-1045.5177142,0.00040096,31]
[421815173,1778183433000,-1045.5177142,0.00040096,31]
[421815179,1778183433000,-1045.5177142,0.00040096,31]
[421815180,1778183433000,-1045.5177142,0.00040096,31]
[421815174,1778183433000,-1045.5177142,0.00040096,31]
[421815183,1778183433000,-1045.5177142,0.00040096,31]
[421815178,1778183433000,-1045.5177142,0.00040096,31]
[421815177,1778183433000,-1045.5177142,0.00040096,31]
[421815181,1778183433000,-1045.5177142,0.00040096,31]
[421815176,1778183433000,-1045.5177142,0.00040096,31]
[421815186,1778183433000,-1045.5177142,0.00040096,31]
[421815188,1778183433000,-1045.5177142,0.00040096,31]
[421815185,1778183433000,-1045.5177142,0.00040096,31]
[421815187,1778183433000,-1045.5177142,0.00040096,31]
[421815189,1778183433000,-1045.5177142,0.00040096,31]
[421815160,1778183433000,-1045.5177142,0.00040096,31]
[421815182,1778183433000,-1045.5177142,0.00040096,31]
[421815162,1778183433000,-1045.5177142,0.00040096,31]
[421815151,1778183433000,-1052.77825388,0.00040096,31]
[421815168,1778183433000,-1045.5177142,0.00040096,31]
[421815142,1778183433000,-150.0,0.0004003,2]
[421815145,1778183433000,-500.0,0.00040053,7]
[421815144,1778183433000,-500.0,0.00040053,7]
[421815143,1778183433000,-3626.0,0.0004003,2]
[421815147,1778183433000,-1052.77825388,0.00040096,31]
[421815146,1778183433000,-500.0,0.00040053,7]
[421815148,1778183433000,-500.0,0.00040096,31]
[421815154,1778183433000,-1045.5177142,0.00040096,31]
[421815150,1778183433000,-1052.77825388,0.00040096,31]
[421815153,1778183433000,-1045.5177142,0.00040096,31]
[421815149,1778183433000,-1052.77825388,0.00040096,31]
[421815152,1778183433000,-1045.5177142,0.00040096,31]
[421815155,1778183433000,-1045.5177142,0.00040096,31]
[421815156,1778183433000,-1045.5177142,0.00040096,31]
[421815167,1778183433000,-1045.5177142,0.00040096,31]
[421815166,1778183433000,-1045.5177142,0.00040096,31]
[421815159,1778183433000,-1045.5177142,0.00040096,31]
[421815158,1778183433000,-1045.5177142,0.00040096,31]
[421815157,1778183433000,-1045.5177142,0.00040096,31]
[421815165,1778183433000,-1045.5177142,0.00040096,31]
[421815164,1778183433000,-1045.5177142,0.00040096,31]
[421815161,1778183433000,-1045.5177142,0.00040096,31]
[421815192,1778183433000,-1045.5177142,0.00040096,31]
[421815184,1778183433000,-1045.5177142,0.00040096,31]
[421815191,1778183433000,-1045.5177142,0.00040096,31]
[421815216,1778183433000,-1042.69199064,0.00040096,31]
[421815219,1778183433000,-1042.69199064,0.00040096,31]
[421815218,1778183433000,-1042.69199064,0.00040096,31]
[421815223,1778183433000,-1042.69199064,0.00040096,31]
[421815222,1778183433000,-1042.69199064,0.00040096,31]
[421815224,1778183433000,-1042.69199064,0.00040096,31]
[421815226,1778183433000,-500.0,0.00040096,31]
[421815225,1778183433000,-1042.69199064,0.00040096,31]
[421815232,1778183433000,-1042.69199064,0.00040096,31]
[421815229,1778183433000,-500.0,0.00040096,31]
[421815230,1778183433000,-1042.69199064,0.00040096,31]
[421815228,1778183433000,-179.48538874,0.00040096,31]
[421815227,1778183433000,-457.86438646,0.00040096,31]
[421815233,1778183433000,-1042.69199064,0.00040096,31]
[421815234,1778183433000,-1042.69199064,0.00040096,31]
[421815235,1778183433000,-1042.69199064,0.00040096,31]
[421815238,1778183433000,-1042.6919906,0.00040096,31]
[421815239,1778183433000,-77287.90028503,0.00040097,2]
[421815237,1778183433000,-1042.69199064,0.00040096,31]
[421815236,1778183433000,-1042.69199064,0.00040096,31]
[421815194,1778183433000,-1045.5177142,0.00040096,31]
[421815221,1778183433000,-1042.69199064,0.00040096,31]
[421815217,1778183433000,-1042.69199064,0.00040096,31]
[421815231,1778183433000,-1042.69199064,0.00040096,31]
[421815220,1778183433000,-1042.69199064,0.00040096,31]
[421815190,1778183433000,-1045.5177142,0.00040096,31]
[421815215,1778183433000,-1042.69199064,0.00040096,31]
[421815193,1778183433000,-1045.5177142,0.00040096,31]
[421815196,1778183433000,-1045.5177142,0.00040096,31]
[421815208,1778183433000,-1042.69199064,0.00040096,31]
[421815207,1778183433000,-1042.69199064,0.00040096,31]
[421815206,1778183433000,-1042.69199064,0.00040096,31]
[421815199,1778183433000,-1042.69199064,0.00040096,31]
[421815198,1778183433000,-1042.69199064,0.00040096,31]
[421815197,1778183433000,-1045.5177142,0.00040096,31]
[421815200,1778183433000,-1042.69199064,0.00040096,31]
[421815195,1778183433000,-1045.5177142,0.00040096,31]
[421815211,1778183433000,-1042.69199064,0.00040096,31]
[421815214,1778183433000,-1042.69199064,0.00040096,31]
[421815202,1778183433000,-1042.69199064,0.00040096,31]
[421815212,1778183433000,-1042.69199064,0.00040096,31]
[421815213,1778183433000,-1042.69199064,0.00040096,31]
[421815209,1778183433000,-1042.69199064,0.00040096,31]
[421815210,1778183433000,-1042.69199064,0.00040096,31]
[421815201,1778183433000,-1042.69199064,0.00040096,31]
[421815205,1778183433000,-1042.69199064,0.00040096,31]
[421815203,1778183433000,-1042.69199064,0.00040096,31]
[421815204,1778183433000,-1042.69199064,0.00040096,31]